Cogmind - Beta 14 @@@ ROGUE MODE // 2024.12.01 @ 20:10:39 Player: Ender Result: Self-destructed Performance ------------- Evolutions (1) 500 Regions Visited (2) 400 Robots Destroyed (21) 105 Value Destroyed (493) 493 Prototype IDs (0) 0 Alien Tech Used (0) 0 Bonus (0) 0 TOTAL SCORE: 1498 Bonus ------- None Cogmind --------- Core Integrity 314/400 Matter 300/300 Energy 160/160 System Corruption 0% Temperature Cool (0) Movement Core (150) Ox2 Location -9/Materials Parts ------- > --- POWER (1) -------- Light Nuclear Core > --- PROPULSION (4) --- (None) > --- UTILITY (2) ------ Improved Heat Sink > --- WEAPON (2) ------- Mining Claw > --- INVENTORY (5) ---- High-capacity Matter Pod (200) Medium Laser Beam Cannon Peak State ------------ > --- POWER ------------ Light Nuclear Core > --- PROPULSION ------- Light Treads Light Treads > --- UTILITY ---------- Improved Heat Sink Hacking Suite > --- WEAPON ----------- Beam Cannon Mining Claw > --- INVENTORY -------- High-capacity Matter Pod Medium Laser Beam Cannon [Rating: 13] Favorites ----------- Power Ion Engine Engine Ion Engine Power Core Light Nuclear Core Propulsion Light Treads Treads Light Treads Utility Hacking Suite Device Improved Heat Sink Storage Small Storage Unit Hackware Hacking Suite Weapon Beam Cannon Energy Gun Medium Laser Energy Cannon Beam Cannon Ballistic Gun Assault Rifle Slashing Weapon Mining Claw Build | -11 -10 -9 ------- Run | Yrd Mat Mat Slots Evolved 2 | . . 2 Power . | . . . Propulsion 2 | . . 2 Utility . | . . . Weapon . | . . . Parts Attached 19 | 6 10 3 Power 3 | 1 1 1 Engine 1 | 1 . . Core 2 | . 1 1 Reactor . | . . . Propulsion 2 | 2 . . Treads 2 | 2 . . Leg . | . . . Wheel . | . . . Hover . | . . . Flight . | . . . Utility 6 | 1 4 1 Device 3 | . 2 1 Storage 2 | 1 1 . Processor . | . . . Hackware 1 | . 1 . Protection . | . . . Artifact . | . . . Weapon 8 | 2 5 1 Energy Gun 1 | 1 . . Energy Cannon 4 | . 4 . Ballistic Gun 1 | 1 . . Ballistic Cannon . | . . . Launcher . | . . . Special Weapon . | . . . Impact Weapon . | . . . Slashing Weapon 2 | . 1 1 Piercing Weapon . | . . . Special Melee Weapon . | . . . Unidentified Prototypes . | . . . Parts Lost 5 | . 1 4 Power . | . . . Propulsion 2 | . . 2 Utility 2 | . 1 1 Weapon 1 | . . 1 Highest Loss Streak 2 | . 1 2 To Critical Strikes . | . . . Average Slot Usage (%) 90 | . 97 62 Engine 8 | . 9 . Core 4 | . 3 8 Treads 25 | . 28 12 Device 12 | . 10 20 Storage 5 | . 6 . Hackware 7 | . 9 . Energy Gun 3 | . 3 . Energy Cannon 18 | . 19 17 Ballistic Gun 2 | . 3 . Slashing Weapon 1 | . 1 4 Peak Build Rating 13 | 6 13 11 Average Rating 8 | 4 9 9 On Entrance 5 | . 6 10 Naked Turns . | . . . Heaviest Build 18 | 14 18 13 Greatest Support 40 | 40 40 40 Greatest Overweight (x) 3 | . . 3 Average Overweight (x) . | . . 1 Largest Inventory Capacity 8 | 8 8 5 Average Capacity 5 | 6 6 5 Most Carried 7 | 2 7 3 Average Carried 2 | 1 3 3 Final Capacity 8 | 8 5 5 Final Carried 3 | 2 3 3 Class Distribution -------------------- 100% | Mutant Dominant Class ---------------- Mutant | -10/Materials Mutant | -9/Materials Resources | -11 -10 -9 ----------- Run | Yrd Mat Mat Matter Collected 590 | 221 344 25 Remotely . | . . . Salvage Created 576 | . 506 70 Parts 50 | . 37 13 Haulers Intercepted . | . . . Recyclers Shooed . | . . . Parts Field Recycled . | . . . Retrieved Matter . | . . . Parts Self-Destructed . | . . . Prevented . | . . . Kills | -11 -10 -9 ------- Run | Yrd Mat Mat Combat Hostiles Destroyed 16 | . 12 4 Melee 4 | . 2 2 Cannons 12 | . 10 2 Classes Destroyed 5 | . 5 . Tunneler 1 | . 1 . Operator 1 | . 1 . Watcher 3 | . 2 1 Swarmer 7 | . 3 4 Grunt 9 | . 9 . Best Kill Streak 6 | . 6 4 Combat Bots Only 5 | . 5 4 Max Kills in Single Turn 1 | . 1 1 Gunslinging . | . . . Exploded . | . . . Melee 1 | . 1 1 Uniques/NPCs Destroyed . | . . . Combat | -11 -10 -9 -------- Run | Yrd Mat Mat Hostile Shots Fired 144 | . 83 61 Missed 46 | . 21 25 Damage Taken 926 | . 601 325 Core 190 | . 104 86 Absorbed by Shields . | . . . Regen/Repaired (Parts) 15 | . . 15 Core Remaining (%) 79 | 100 58 . Volleys Fired 50 | . 38 12 Largest 2 | . 2 2 Hottest 120 | . 120 120 Shots Fired 81 | . 67 14 Gun 10 | . 10 . Cannon 71 | . 57 14 Launcher . | . . . Special . | . . . Kinetic 5 | . 5 . Thermal 76 | . 62 14 Explosive . | . . . Electromagnetic . | . . . Robot Hit Streak 8 | . 8 3 Robot Miss Streak 5 | . 5 4 Penetration Max . | . . . Secondary Targets . | . . . Shots Hit Robots 41 | . 32 9 Core Hits 24 | . 19 5 Critical Kills . | . . . Critical Parts Destroyed . | . . . Critical Strikes 2 | . 2 . Burn 2 | . 2 . Melee Attacks 9 | . 6 3 Impact . | . . . Slashing 9 | . 6 3 Piercing . | . . . Sneak Attacks . | . . . Combat Hostiles . | . . . Follow-up Attacks . | . . . Damage Inflicted 728 | . 559 169 Guns 75 | . 75 . Cannons 555 | . 434 121 Explosions . | . . . Melee 98 | . 50 48 Ramming . | . . . Kinetic 25 | . 25 . Thermal 605 | . 484 121 Explosive . | . . . Electromagnetic . | . . . Impact . | . . . Slashing 98 | . 50 48 Piercing . | . . . Highest Corruption . | . . . Average Corruption . | . . . Corruption Purged . | . . . Corruption Blocked . | . . . Overload Shots . | . . . Overflow Damage 5 | . 5 . Projectiles 5 | . 5 . Explosions . | . . . Melee . | . . . Knockbacks . | . . . Impact . | . . . Kinetic . | . . . Secondary . | . . . Self-Inflicted Damage . | . . . Shots . | . . . Rammed . | . . . Targets Rammed . | . . . Kicked . | . . . Crushed . | . . . Highest Temperature 186 | . 186 30 Average Temperature 42 | . 44 11 Received Heat Transfer 249 | . 186 63 Siege Activations . | . . . Robots Corrupted . | . . . Combat Hostiles . | . . . Parts Fried . | . . . Impact Corruptions . | . . . Robots Melted . | . . . Combat Hostiles . | . . . Parts Melted 2 | . 2 . Heat Transferred 1480 | . 1221 259 Parts Sabotaged . | . . . Parts Stolen . | . . . Parts Stripped . | . . . Power Chain Reactions . | . . . Alert | -11 -10 -9 ------- Run | Yrd Mat Mat Peak Influence 303 | . 303 196 Initial 123 | . . 123 Average 112 | . 115 145 Maximum Alert Level 1 | . 1 . Low Security (%) 87 | 100 82 100 Level 1 12 | . 17 . Level 2 . | . . . Level 3 . | . . . Level 4 . | . . . Level 5 . | . . . High Security . | . . . Max Security . | . . . Squads Dispatched 3 | . 3 . Investigation 2 | . 2 . Extermination . | . . . Reinforcement 1 | . 1 . Assault . | . . . Garrison . | . . . Intercept . | . . . Searches Triggered . | . . . Construction Impeded . | . . . Haulers Reinforced . | . . . Active Scanning Responses . | . . . Cargo Convoy Interrupts . | . . . Stealth | -11 -10 -9 --------- Run | Yrd Mat Mat Distress Signals 1 | . 1 . Communications Jammed . | . . . Distress Signals . | . . . Times Spotted 33 | . 25 8 Peak Tracking Total 6 | . 5 6 Tactical Retreats 2 | . 2 . Traps | -11 -10 -9 ------- Run | Yrd Mat Mat Traps Triggered 1 | . 1 . Indirectly . | . . . Trap Hack Attempts . | . . . Triggered . | . . . Disarmed . | . . . Reprogrammed . | . . . Reused . | . . . Traps Extracted . | . . . Installed . | . . . Triggered . | . . . Machines | -11 -10 -9 ---------- Run | Yrd Mat Mat Machines Disabled 2 | . 2 . Max in Single Turn 1 | . 1 . Machines Repaired . | . . . Machines Dismantled . | . . . Machines Sabotaged . | . . . Overloaded Fab Kills . | . . . Hacking | -11 -10 -9 --------- Run | Yrd Mat Mat Machines Accessed 6 | . 5 1 Terminals 5 | . 5 . Fabricators . | . . . Repair Stations 1 | . . 1 Recycling Units . | . . . Scanalyzers . | . . . Garrison Access . | . . . Total Hacks 14 | . 11 3 Successful 4 | . 2 2 Failed 10 | . 9 1 Catastrophic 3 | . 3 . Database Lockouts . | . . . Manual 5 | . 5 . Terminals 11 | . 11 . Fabricators . | . . . Repair Stations 3 | . . 3 Recycling Units . | . . . Scanalyzers . | . . . Garrison Access . | . . . Terminal Hacks 2 | . 2 . Emergency Access Points 1 | . 1 . Locate Traps 1 | . 1 . Fabricator Hacks . | . . . Repair Station Hacks 2 | . . 2 Scan Component 1 | . . 1 Repair 1 | . . 1 Recycling Unit Hacks . | . . . Scanalyzer . | . . . Garrison Access Hacks . | . . . Unauthorized Hacks . | . . . Terminals . | . . . Fabricators . | . . . Repair Stations . | . . . Recycling Units . | . . . Scanalyzers . | . . . Garrison Access . | . . . Data Cores Recovered . | . . . Used . | . . . Hacking Detections 5 | . 4 1 Full Trace Events 3 | . 3 . Feedback Events . | . . . Feedback Blocked . | . . . Robot Schematics Acquired . | . . . Robots Built . | . . . Authchips . | . . . Time . | . . . Total Robot Build Rating . | . . . Part Schematics Acquired . | . . . Parts Built . | . . . Authchips . | . . . Time . | . . . Total Part Build Rating . | . . . Parts Repaired 1 | . . 1 Time 38 | . . 38 Parts Recycled . | . . . Recycled Matter . | . . . Retrieved Matter . | . . . Retrieved Components . | . . . Parts Scanalyzed . | . . . Part Schematics Acquired . | . . . Parts Damaged . | . . . Bothacking | -11 -10 -9 ------------ Run | Yrd Mat Mat Used RIF Installer . | . . . Robots Hacked . | . . . Non-combat . | . . . Combat . | . . . Robot Hacks Applied . | . . . Relay Couplers Released . | . . . Fabnet Peak Effective % . | . . . Robots Rewired . | . . . Allies Hacked . | . . . Hacks Repelled . | . . . Allies | -11 -10 -9 -------- Run | Yrd Mat Mat Total Allies . | . . . Largest Group . | . . . Highest-Rated Group . | . . . Highest-Rated Ally . | . . . Total Orders . | . . . Ally Attacks . | . . . Total Damage . | . . . Kills . | . . . Allies Corrupted . | . . . Allies Melted . | . . . Intel | -11 -10 -9 ------- Run | Yrd Mat Mat Robot Analysis Total . | . . . Derelict Logs Recovered . | . . . Drone Launches . | . . . Drone Recoveries . | . . . Exploration | -11 -10 -9 ------------- Run | Yrd Mat Mat Turns Passed 967 | 75 717 175 Spaces Moved 451 | 44 352 55 Core 28 | 5 . 23 Treads 423 | 39 352 32 Legs . | . . . Wheels . | . . . Hover . | . . . Flight . | . . . Fastest Speed 50 | 50 160 160 Average Speed 160 | 147 160 176 Slowest Speed 200 | 160 160 200 Overloaded Moves . | . . . Propulsion Burnouts . | . . . Robots Hopped . | . . . Cave-ins Triggered . | . . . Exploration Rate (%) 23 | 4 61 4 Regions Visited 2 Branch Regions . Pre-discovered Areas . | . . . Known Exits Taken . | . . . Unknown Exits Taken 2 | 1 1 . Scrap Searched . | . . . Spaces Dug . | . . . Terrain Destroyed . | . . . Melee . | . . . Projectile . | . . . AOE . | . . . Terrain Rammed . | . . . Walls Destroyed . | . . . Machines Disabled . | . . . Actions | -11 -10 -9 --------- Run | Yrd Mat Mat Total 588 | 51 426 111 Wait 47 | . 9 38 Move 449 | 43 351 55 Hop . | . . . Pick Up 7 | 2 5 . Fast Attach 12 | 6 4 2 Attach 1 | . 1 . Detach . | . . . Swap 6 | . 5 1 Drop 7 | . 7 . Fire 50 | . 38 12 Melee 9 | . 6 3 Ram . | . . . Kick . | . . . Crush . | . . . Escape Stasis . | . . . Rewire . | . . . Trap . | . . . Miscellaneous . | . . . Route ------- -11/Scrapyard -10/Materials (discovered 2 exits: *Mat / [*Min]) -9/Materials History --------- Turn | Location | Event 9 | -11/Scrapyard | Discovered new exit (range 15) 76 | -11/Scrapyard | Entered Materials 310 | -10/Materials | Build established: Mutant 679 | -10/Materials | Discovered new exit (range 13) 774 | -10/Materials | Discovered new exit (range 10) 793 | -10/Materials | Entered another Materials area 793 | -9/Materials | Evolved 2 slots: Propulsion x2 875 | -9/Materials | Repaired Lgt. Nuclear Core 968 | -9/Materials | Self-destructed Last Messages --------------- Current location identified: Materials >>Scan(Lgt. Nuclear Core) Scanning Lgt. Nuclear Core... Ready to Repair: Lgt. Nuclear Core Rating: 3 Time: 38 >>Repair Repairing Lgt. Nuclear Core... ETC: 38 Repair station completes Lgt. Nuclear Core repairs. Acquired Lgt. Nuclear Core. Lgt. Treads destroyed. S-10 Pest destroyed. Acquired 11 matter. Acquired 14 matter. Sensor Array destroyed. W-16 Scout destroyed. Beam Cannon destroyed. Map ----- +----------------------------------------------------+ | | | | | | | | | | | | | | | ?????????????????????????????????????????????????? | | ?????????????????????????????????????????????????? | | ?????????????????????????????????????????????????? | | ?????????????????????????????????????????????????? | | ?????????????????????????????????????????????????? | | ?????????????????????????????????????????????????? | | ?????????????????????????????????????????????????? | | ?????????????????????????????????????????????????? | | ?????????????????????????????????????????????????? | | ???????????????????????????????????##########????? | | ???????????????????????????????????# #????? | | ???????????????????????????????????# """ #????? | | ????????????????????######?????????# """ ! #????? | | ???????????????????##!!!!##????##### """ #????? | | ???????????????????#! !#????# # #????? | | ???????????????????# #????# [# """ #????? | | ???????????????????# #?????# *[#* R" #????? | | ???????????????##### %#######==%+= """ #????? | | ????????????# * @ %=*# #????? | | ????????????+ =% = ##########????? | | ????????????# u #?????????????? | | ????????????######## ###########?????????????? | | ???????????????????## gg##???????????????????????? | | ????????????????????# #????????????????????????? | | ????????????????????#g #????????????????????????? | | ????????????????????# #????????????????????????? | | ????????????????????# ?????????????????????????? | | ????????????????????# ?????????????????????????? | | ????????????????????# ?????????????????????????? | | ????????????????????####?????????????????????????? | | ?????????????????????????????????????????????????? | | ?????????????????????????????????????????????????? | | ?????????????????????????????????????????????????? | | ?????????????????????????????????????????????????? | | ?????????????????????????????????????????????????? | | ?????????????????????????????????????????????????? | | ?????????????????????????????????????????????????? | | ?????????????????????????????????????????????????? | | ?????????????????????????????????????????????????? | | ?????????????????????????????????????????????????? | | ?????????????????????????????????????????????????? | | ?????????????????????????????????????????????????? | | ?????????????????????????????????????????????????? | +----------------------------------------------------+ Best States ------------- Heat Dissipation 42 Energy Generation 14 Energy Capacity 250 Matter Stores 300 Matter Capacity 500 Sight Range 16 Robot Scan Range 14 Terrain Scan Density 10 Evasion (%) 40 Recoil Reduction 2 Offensive Hacking 10 Item Schematics ----------------- None Robot Schematics ------------------ None Fabricated ------------ Nothing Alien Tech Used ----------------- None Achievements -------------- None Challenges ------------ None Game ------ Seed IntegrityDerelictBlade Manual? 0 Play Time 00:12:02 Cumulative 2.0 hours Start 2024.09.13 @ 22:23:53 End 2024.12.01 @ 20:10:39 Sessions 5 Manual Loads 0 Difficulty Rogue Special Mode None Game No. 3 Rogue 3 Adventurer 0 Explorer 0 Win Type - Total 0 Types 0/0/0/0/0/0/0/0/0 Lore% 1 Gallery% 6 Achievement% 8 Wizard Run 0 Options --------- Layout 2 ASCII 0 Keyboard 0 Movement Mouse Keybinds 0 Fullscreen 1 Font 24/Smallcaps Map View 50x44 Zoom Use 0% Tactical HUD 0 Map Filters NONE Filters NONE Steam 1 RUN: 4ed5915d-c4ed-4824-9e5c-6a636441fdbd